fUST/lending_fUST_20260329
["ID","MTS","AMOUNT","RATE_DAILY","PERIOD"]
[419001555,1774734638403,-500.0,0.0001192,2]
[419001557,1774734638412,-2727.14896239,0.00012285,2]
[419001559,1774734638422,-500.0,0.00012927,2]
[419001561,1774734638431,-2766.86017322,0.00013094,2]
[419001563,1774734638441,-2247.4842401,0.00013151,2]
[419001565,1774734638450,-180.22777684,0.00013233,14]
[419001567,1774734638459,-500.0,0.00013322,2]
[419001569,1774734638470,-1000.0,0.00013699,2]
[419001571,1774734638479,-500.0,0.00013782,2]
[419001573,1774734638488,-500.0,0.0001388,2]
[419001576,1774734638497,-3057.35566014,0.00013904,2]
[419001578,1774734638506,-764.61468353,0.00013989,2]
[419001580,1774734638515,-300.0,0.00014412,2]
[419001584,1774734638525,-3358.65198662,0.00015523,10]
[419001588,1774734638534,-500.0,0.00015944,2]
[419001591,1774734638543,-176.0,0.00016172,2]
[419001593,1774734638553,-3476.41899755,0.00016332,14]
[419001595,1774734638562,-500.0,0.00017044,2]
[419001597,1774734638572,-3630.1116531,0.00017142,17]
[419001600,1774734638581,-176.0,0.00017172,2]
[419001601,1774734638590,-500.0,0.00017436,2]
[419001603,1774734638599,-176.0,0.00018172,2]
[419001605,1774734638608,-500.0,0.00018172,2]
[419001607,1774734638617,-500.0,0.00018446,2]
[419001609,1774734638626,-500.0,0.0001872,2]
[419001612,1774734638636,-3901.57131958,0.00018761,24]
[419001614,1774734638645,-500.0,0.00018994,2]
[419001616,1774734638654,-500.0,0.00019098,2]
[419001618,1774734638663,-176.0,0.00019172,2]
[419001619,1774734638672,-500.0,0.00019268,2]
[419001621,1774734638681,-500.0,0.00019542,2]
[419001623,1774734638690,-500.0,0.00019653,2]
[419001625,1774734638699,-500.0,0.00019816,2]
[419001627,1774734638708,-500.0,0.0002009,2]
[419001629,1774734638717,-176.0,0.00020172,2]
[419001631,1774734638726,-500.0,0.00020364,2]
[419001633,1774734638735,-4173.03098605,0.00020379,34]
[419001635,1774734638744,-500.0,0.00020638,2]
[419001637,1774734638753,-500.0,0.00020912,2]
[419001639,1774734638762,-177.0674843,0.00021172,2]
[419001641,1774734638771,-4439.18586986,0.00021998,54]
[419001643,1774734638780,-196.17500001,0.000228,2]
[419001645,1774734638789,-4679.35106011,0.00022808,64]
[419001647,1774734638798,-160.0,0.0002283,2]
[419001649,1774734638806,-160.0,0.0002283,2]
[419001651,1774734638815,-600.0,0.000229,8]
[419001653,1774734638824,-270.83333333,0.00023,2]
[419001664,1774734638937,-196.17500001,0.000231,2]
[419001665,1774734638946,-642.0,0.00023157,2]
[419001666,1774734638955,-2197.0,0.00023157,2]
[419001667,1774734638964,-535.451,0.00023157,2]
[419001668,1774734638974,-736.0,0.00023157,2]
[419001669,1774734638983,-184.0,0.00023157,2]
[419001670,1774734638992,-151.457,0.00023157,2]
[419001671,1774734639001,-2230.315306,0.00023351,2]
[419001672,1774734639011,-4710.31021496,0.00023617,74]
[419001673,1774734639020,-500.0,0.00023762,5]
[419001674,1774734639030,-162.0,0.00023844,3]
[419001676,1774734639039,-162.0,0.00023844,3]
[419001678,1774734639048,-2312.83697232,0.00023899,2]
[419001680,1774734639057,-247.313,0.00024005,5]
[419001682,1774734639066,-172.37684368,0.00024064,2]
[419001684,1774734639075,-1933.55297226,0.00024064,2]
[419001686,1774734639084,-2727.7,0.00024116,3]
[419001688,1774734639093,-21821.57,0.00024117,3]
[419001690,1774734639102,-10910.78,0.00024117,3]
[419001692,1774734639111,-5455.39,0.00024117,3]
[419001694,1774734639120,-151.0,0.00024117,2]
[419001696,1774734639129,-151.0,0.00024117,2]
[419001698,1774734639138,-151.0,0.00024117,2]
[419001700,1774734639147,-151.0,0.00024117,2]
[419001702,1774734639156,-595.27401319,0.00024125,2]
[419001704,1774734639165,-500.0,0.00024125,2]
[419001706,1774734639174,-595.27401319,0.00024125,2]
[419001708,1774734639183,-595.27401319,0.00024125,2]
[419001710,1774734639192,-212.81070648,0.00024125,2]
[419001712,1774734639201,-595.27401319,0.00024125,2]
[419001713,1774734639210,-595.27401319,0.00024125,2]
[419001715,1774734639219,-595.27401319,0.00024125,2]
[419001717,1774734639228,-500.0,0.00024125,2]
[419001719,1774734639238,-595.27401319,0.00024125,2]
[419001721,1774734639247,-595.27401319,0.00024125,2]
[419001723,1774734639256,-595.27401319,0.00024125,2]
[419001725,1774734639265,-595.27401319,0.00024125,2]
[419001727,1774734639274,-595.27401319,0.00024125,2]
[419001729,1774734639283,-595.27401319,0.00024125,2]
[419001731,1774734639292,-595.27401319,0.00024125,2]
[419001733,1774734639301,-595.27401319,0.00024125,2]
[419001735,1774734639310,-595.27401319,0.00024125,2]
[419001737,1774734639319,-595.27401319,0.00024125,2]
[419001739,1774734639328,-595.27401319,0.00024125,2]
[419001741,1774734639337,-595.27401319,0.00024125,2]
[419001744,1774734639346,-595.27401319,0.00024125,2]
[419001746,1774734639356,-595.27401319,0.00024125,2]
[419001748,1774734639365,-595.27401319,0.00024125,2]
[419001750,1774734639374,-595.27401319,0.00024125,2]
[419001751,1774734639384,-595.27401319,0.00024125,2]
[419001753,1774734639394,-1246992.1988608,0.00024127,2]
[419001825,1774734641043,-1635.28959165,0.00024127,2]
[419001844,1774734646573,-1363.85,0.00024117,3]
[419001845,1774734646583,-151.0,0.00024117,2]
[419001846,1774734646593,-6983.1009963,0.00024127,2]
[419001847,1774734646605,-11948.39880365,0.00024127,2]
[419001848,1774734646922,-1359.0,0.00024127,2]
[419001867,1774735444291,5000.0,5e-05,10]
[419001868,1774735466261,5000.0,5e-05,10]
[419001908,1774735832455,-944.09843891,4.42e-05,2]
[419001910,1774735832519,-620.38282993,4.42e-05,2]
[419001966,1774735838608,-687.33916467,4.42e-05,2]
[419002192,1774735841128,-2748.17956649,4.42e-05,2]
[419002194,1774735841138,-154.12467876,0.0001,2]
[419002196,1774735841147,-537.3672755,0.0001,2]
[419002198,1774735841157,-6605.32847925,0.000104,2]
[419002202,1774735841191,-812.04690215,0.000104,2]
[419002325,1774735844010,-10362.322468,0.000104,2]
[419002326,1774735844202,-40395.14863073,0.000104,2]
[419002327,1774735844213,-427.66363572,0.00010618,2]
[419002328,1774735844222,-1000.0,0.00013699,2]
[419002329,1774735844233,-500.0,0.00017223,2]
[419002330,1774735844244,-154.12467876,0.000179,14]
[419002331,1774735844254,-500.0,0.0001955,2]
[419002332,1774735844264,-1000.0,0.00021087,2]
[419002333,1774735844273,-154.0,0.00022,2]
[419002334,1774735844282,-223.5635367,0.00022848,2]
[419002335,1774735844293,-154.0,0.00023,2]
[419002336,1774735844303,-15380.3736,0.00023136,2]
[419002337,1774735844313,-1402.0,0.00023157,2]
[419002338,1774735844323,-2197.0,0.00023157,2]
[419002339,1774735844333,-642.0,0.00023157,2]
[419002340,1774735844345,-185.693,0.00023157,2]
[419002341,1774735844354,-184.0,0.00023157,2]
[419002342,1774735844364,-439.0,0.00023157,2]
[419002344,1774735844373,-557.5788265,0.00023389,2]
[419002345,1774735844383,-2230.315306,0.00023389,2]
[419002346,1774735844392,-578.20924308,0.00023444,2]
[419002347,1774735844402,-599.60298507,0.00023499,2]
[419002348,1774735844412,-621.78829552,0.00023554,2]
[419002350,1774735844422,-644.79446246,0.00023609,2]
[419002352,1774735844431,-668.65185757,0.00023664,2]
[419002354,1774735844440,-160.0,0.00023702,2]
[419002355,1774735844449,-693.3919763,0.00023719,2]
[419002356,1774735844459,-1740.19767498,0.00023729,2]
[419002357,1774735844468,-270.83333333,0.00023734,2]
[419002358,1774735844476,-719.04747942,0.00023774,2]
[419002359,1774735844487,-14775.02,0.00023807,3]
[419002360,1774735844497,-7387.51,0.00023807,3]
[419002361,1774735844507,-3693.75,0.00023807,3]
[419002362,1774735844516,-1846.88,0.00023807,3]
[419002363,1774735844525,-66625.83763341,0.00023817,2]
[419002364,1774735844537,-19751.12878883,0.00023817,2]
[419002365,1774735844549,-1063.22833613,0.00023817,2]
[419002366,1774735844560,-31493.68091032,0.00023817,2]
[419002413,1774735846839,-6290.123113,0.00023817,2]
[419002414,1774735846898,-909.80295268,0.00023817,2]
[419002415,1774735846909,-383831.69987332,0.00023817,2]
[419002416,1774735846920,-25520.03489578,0.00023817,2]
[419002497,1774737032465,-5000.0,0.00013159,10]
[419002499,1774737032475,-500.0,0.00013282,2]
[419002501,1774737032484,-609.0,0.00013282,2]
[419002504,1774737032493,-1000.0,0.00013699,2]
[419002506,1774737032502,-500.0,0.00015086,2]
[419002507,1774737032511,-500.0,0.00016709,2]
[419002509,1774737032520,-180.0,0.00016847,2]
[419002511,1774737032530,-500.0,0.00016848,2]
[419002513,1774737032539,-500.0,0.00019557,2]
[419002515,1774737032548,-3182.7307886,0.00022412,2]
[419002517,1774737032558,-11438.2692114,0.00022412,2]
[419002520,1774737032570,-382.72802824,0.00022412,2]
[419002522,1774737032580,-1000.0,0.00022412,2]
[419002523,1774737032590,-10291.7555566,0.00022412,2]
[419002662,1774737038765,-1925.81703556,0.00022412,2]
[419002664,1774737038777,-406.04,0.00022412,2]
[419003188,1774737044049,-6650.25,0.00022412,2]
[419003502,1774737047096,-1538.197185,0.00022412,2]
[419003504,1774737047106,-2949.66869561,0.000229,2]
[419003506,1774737047116,-270.83333333,0.00023,2]
[419003508,1774737047125,-1566.1779075,0.000235,2]
[419003510,1774737047133,-4174.67527413,0.00023507,3]
[419003513,1774737047145,-5983.15472587,0.00023507,3]
[419003515,1774737047153,-3121.10128788,0.00023507,3]
[419004306,1774738232889,-344.65715486,0.00013159,10]
[419004307,1774738232901,-4655.34284514,0.00013159,10]
[419004308,1774738232911,-615.0,0.00013698,2]
[419004309,1774738232920,-1000.0,0.00013699,2]
[419004310,1774738232930,-300.0,0.00019496,2]
[419004311,1774738232939,-1200.0,0.00019496,2]
[419004312,1774738232948,-300.0,0.00019497,2]
[419004313,1774738232957,-300.0,0.00019497,2]
[419004314,1774738232967,-300.0,0.00019497,2]
[419004315,1774738232976,-303.68903107,0.00019498,2]
[419004316,1774738232985,-346.72610518,0.00019498,2]
[419004317,1774738232994,-1000.0,0.00021827,2]
[419004318,1774738233004,-162.826655,0.00022493,2]
[419004320,1774738233013,-270.83333333,0.00023,2]
[419004322,1774738233023,-1000.0,0.00023,14]
[419004324,1774738233032,-1000.0,0.000231,15]
[419004325,1774738233042,-1000.0,0.000231,16]
[419004326,1774738233052,-1000.0,0.000232,17]
[419004327,1774738233062,-1000.0,0.0002335,18]
[419004328,1774738233071,-500.0,0.0002338,2]
[419004329,1774738233081,-500.0,0.0002338,2]
[419004330,1774738233091,-500.0,0.0002338,2]
[419004331,1774738233101,-557.5788265,0.00023389,2]
[419004332,1774738233110,-2230.315306,0.00023389,2]
[419004333,1774738233121,-2949.66869561,0.00023396,2]
[419004334,1774738233130,-2949.66869561,0.00023396,2]
[419004335,1774738233140,-196.71583004,0.000234,71]
[419004336,1774738233149,-272.83863526,0.000234,71]
[419004337,1774738233159,-289.38453444,0.000234,71]
[419004338,1774738233168,-299.51251034,0.000234,71]
[419004339,1774738233178,-1000.0,0.000234,19]
[419004340,1774738233188,-500.0,0.00023408,2]
[419004341,1774738233199,-345.273,0.00023417,3]
[419004342,1774738233210,-578.20924308,0.00023444,2]
[419004343,1774738233220,-270.83333333,0.00023496,3]
[419004344,1774738233229,-222.21265566,0.00023499,2]
[419004409,1774738239162,-5000.0,0.00023162,2]
[419004410,1774738239173,-377.39032941,0.00023499,2]
[419004411,1774738239183,-500.0,0.00023499,2]
[419004412,1774738239192,-500.0,0.00023499,2]
[419004413,1774738239202,-500.0,0.00023499,2]
[419004414,1774738239212,-500.0,0.00023499,2]
[419004415,1774738239222,-500.0,0.00023499,2]
[419004416,1774738239232,-630.52065407,0.00023499,2]
[419004418,1774738239242,-500.0,0.00023499,2]
[419004420,1774738239251,-500.0,0.00023499,2]
[419004422,1774738239262,-500.0,0.00023499,2]
[419004424,1774738239273,-500.0,0.00023499,2]
[419004425,1774738239282,-500.0,0.00023499,2]
[419004427,1774738239292,-500.0,0.00023499,2]
[419004429,1774738239301,-500.0,0.00023499,2]
[419004431,1774738239311,-198.58690796,0.00023499,2]
[419004433,1774738239321,-500.0,0.00023499,2]
[419004435,1774738239331,-500.0,0.00023499,2]
[419004436,1774738239340,-500.0,0.00023499,2]
[419004437,1774738239349,-500.0,0.00023499,2]
[419004438,1774738239359,-500.0,0.00023499,2]
[419004439,1774738239368,-500.0,0.00023499,2]
[419004441,1774738239378,-500.0,0.00023499,2]
[419004443,1774738239389,-500.0,0.00023499,2]
[419004445,1774738239398,-500.0,0.00023499,2]
[419004446,1774738239409,-500.0,0.00023499,2]
[419004447,1774738239419,-500.0,0.00023499,2]
[419004448,1774738239428,-625.46450637,0.00023499,2]
[419004450,1774738239440,-500.0,0.00023499,2]
[419004452,1774738239450,-500.0,0.00023499,2]
[419004453,1774738239461,-500.0,0.00023499,2]
[419004454,1774738239471,-500.0,0.00023499,2]
[419004456,1774738239481,-500.0,0.00023499,2]
[419004458,1774738239490,-500.0,0.00023499,2]
[419004459,1774738239501,-500.0,0.00023499,2]
[419004460,1774738239513,-500.0,0.00023499,2]
[419004462,1774738239522,-500.0,0.00023499,2]
[419004464,1774738239532,-500.0,0.00023499,2]
[419004466,1774738239542,-500.0,0.00023499,2]
[419004467,1774738239551,-500.0,0.00023499,2]
[419004469,1774738239561,-500.0,0.00023499,2]
[419004470,1774738239571,-151.0,0.000235,8]
[419004471,1774738239581,-151.0,0.000235,9]
[419004472,1774738239591,-151.0,0.000235,8]
[419004473,1774738239601,-151.0,0.000235,9]
[419004474,1774738239610,-151.0,0.000235,7]
[419004475,1774738239620,-151.0,0.000235,9]
[419004476,1774738239630,-86.87546361,0.00023506,2]
[419004477,1774738239643,-113.12453639,0.00023506,2]
[419004478,1774738239655,-621.78829552,0.00023554,2]
[419004479,1774738239667,-1247.8120414,0.00023578,2]
[419004480,1774738239696,-290.3851436,0.00023578,2]
[419004481,1774738239709,-151.0,0.000236,6]
[419004482,1774738239720,-151.0,0.000236,9]
[419004483,1774738239730,-151.0,0.000236,9]
[419004484,1774738239742,-151.0,0.000236,9]
[419004485,1774738239752,-644.79446246,0.00023609,2]
[419004486,1774738239761,-668.65185757,0.00023664,2]
[419004487,1774738239772,-693.3919763,0.00023719,2]
[419004488,1774738239782,-719.04747942,0.00023774,2]
[419004489,1774738239792,-1000.0,0.00023817,2]
[419004490,1774738239802,-292.7122817,0.00023829,2]
[419004491,1774738239812,-162.0,0.00023844,3]
[419004492,1774738239822,-162.0,0.00023844,3]
[419004493,1774738239833,-1546.0,0.00023855,10]
[419004494,1774738239843,-220.21332795,0.00023928,2]
[419004495,1774738239856,-279.78667205,0.00023928,2]
[419004496,1774738239866,-543.16281555,0.00023928,2]
[419004497,1774738239876,-1000.0,0.00023928,2]
[419004498,1774738239886,-2312.83697232,0.00023937,2]
[419004499,1774738239896,-1402.0,0.00024117,2]
[419004500,1774738239906,-642.0,0.00024117,2]
[419004501,1774738239917,-2191.0,0.00024117,2]
[419004502,1774738239927,-184.0,0.00024117,2]
[419004503,1774738239936,-162.0,0.00024164,3]
[419004504,1774738239946,-162.0,0.00024164,3]
[419004505,1774738239956,-455.044711,0.0002421,2]
[419004506,1774738239966,-1007.76777535,0.00024476,2]
[419004507,1774738239975,-2398.4119403,0.00024485,2]
[419004508,1774738239985,-2949.66869557,0.00024536,2]
[419004509,1774738239995,-2949.66869557,0.00024536,2]
[419004510,1774738240005,-500.0,0.00024657,9]
[419004511,1774738240016,-500.0,0.00024657,9]
[419004512,1774738240026,-1943.07050318,0.00024681,2]
[419004513,1774738240036,-169.0,0.00024804,3]
[419004514,1774738240046,-270.83333333,0.00024877,3]
[419004515,1774738240056,-6560.36216523,0.000249,2]
[419004516,1774738240066,-500.0,0.00024931,9]
[419004517,1774738240076,-500.0,0.00024931,9]
[419004518,1774738240086,-500.05039856,0.00024973,2]
[419004519,1774738240096,-500.0,0.00024973,2]
[419004520,1774738240106,-6560.36216523,0.00024989,2]
[419004521,1774738240116,-5249.26437573,0.0002499,2]
[419004594,1774738241755,-389.9284953,0.0002499,2]
[419004857,1774738244539,-7481.53145947,0.0002499,2]
[419004859,1774738244548,-1481.0,0.0002499,10]
[419004861,1774738244558,-8640.45,0.0002499,3]
[419004863,1774738244567,-4320.23,0.0002499,3]
[419004865,1774738244577,-200.0,0.00024999,2]
[419004867,1774738244586,-500.0,0.00024999,2]
[419004869,1774738244595,-500.0,0.00024999,2]
[419004871,1774738244605,-120.9327292,0.00024999,2]
[419005097,1774738247238,-1144.0,0.00023,20]
[419005099,1774738247248,-379.0672708,0.00024999,2]
[419005101,1774738247257,-500.0,0.00024999,2]
[419005103,1774738247267,-500.0,0.00024999,2]
[419005105,1774738247277,-500.0,0.00024999,2]
[419005107,1774738247286,-644.79242789,0.00024999,2]
[419005109,1774738247296,-500.0,0.00024999,2]
[419005111,1774738247306,-500.0,0.00024999,2]
[419005113,1774738247316,-500.0,0.00024999,2]
[419005115,1774738247326,-500.0,0.00024999,2]
[419005116,1774738247335,-500.0,0.00024999,2]
[419005117,1774738247345,-500.0,0.00024999,2]
[419005118,1774738247354,-500.0,0.00024999,2]
[419005119,1774738247363,-500.0,0.00024999,2]
[419005120,1774738247373,-500.0,0.00024999,2]
[419005121,1774738247382,-112.41072008,0.00024999,2]
[419005122,1774738247393,-387.58927992,0.00024999,2]
[419005123,1774738247404,-500.0,0.00024999,2]
[419005124,1774738247413,-1358.0,0.00024999,10]
[419005125,1774738247423,-29982.71651496,0.00025,30]
[419005136,1774738862020,-32.73798582,7.95e-05,10]
[419005229,1774739438137,-1200.0,8.11e-05,2]
[419005231,1774739438147,-5000.0,8.111e-05,2]
[419005233,1774739438156,-534.0,8.111e-05,2]
[419005235,1774739438165,-500.0,8.193e-05,2]
[419005237,1774739438173,-537.3672755,0.0001,2]
[419005239,1774739438183,-6605.32847925,0.000104,2]
[419005241,1774739438193,-500.0,0.00013183,2]
[419005243,1774739438202,-1000.0,0.00013699,2]
[419005245,1774739438211,-300.0,0.00019204,2]
[419005247,1774739438221,-300.0,0.00019204,2]
[419005249,1774739438231,-300.0,0.00019204,2]
[419005251,1774739438240,-300.0,0.00019204,2]
[419005253,1774739438248,-3154.2076571,0.00019205,5]
[419005255,1774739438258,-500.0,0.000193,2]
[419005259,1774739438267,-500.0,0.000193,2]
[419005262,1774739438276,-153.56232626,0.00023,2]
[419005265,1774739438285,-300.0,0.00023098,2]
[419005268,1774739438295,-1000.0,0.000231,21]
[419005271,1774739438304,-500.0,0.00023173,2]
[419005273,1774739438314,-500.0,0.00023173,2]
[419005275,1774739438324,-6480.34,0.0002319,3]
[419005276,1774739438334,-500.0,0.00023199,2]
[419005279,1774739438344,-500.0,0.00023199,2]
[419005283,1774739438353,-500.0,0.00023199,2]
[419005285,1774739438362,-500.0,0.00023199,2]
[419005287,1774739438371,-651.35469952,0.00023199,2]
[419005289,1774739438381,-500.0,0.00023199,2]
[419005291,1774739438390,-500.0,0.00023199,2]
[419005294,1774739438399,-500.0,0.00023199,2]
[419005296,1774739438409,-500.0,0.00023199,2]
[419005298,1774739438418,-500.0,0.00023199,2]
[419005299,1774739438427,-500.0,0.00023199,2]
[419005301,1774739438436,-500.0,0.00023199,2]
[419005303,1774739438446,-500.0,0.00023199,2]
[419005305,1774739438455,-500.0,0.00023199,2]
[419005307,1774739438464,-500.0,0.00023199,2]
[419005309,1774739438475,-299.84298977,0.00023199,2]
[419005311,1774739438484,-500.0,0.00023199,2]
[419005313,1774739438493,-500.0,0.00023199,2]
[419005315,1774739438502,-500.0,0.00023199,2]
[419005316,1774739438511,-500.0,0.00023199,2]
[419005317,1774739438521,-500.0,0.00023199,2]
[419005318,1774739438530,-500.0,0.00023199,2]
[419005319,1774739438539,-445.02634102,0.00023199,2]
[419005320,1774739438549,-482.41078732,0.00023199,2]
[419005321,1774739438563,-500.0,0.00023199,2]
[419005322,1774739438573,-500.0,0.00023199,2]
[419005323,1774739438582,-500.0,0.00023199,2]
[419005324,1774739438592,-500.0,0.00023199,2]
[419005325,1774739438601,-500.0,0.00023199,2]
[419005326,1774739438610,-450.24891141,0.00023199,2]
[419005328,1774739438619,-500.0,0.00023199,2]
[419005329,1774739438629,-71768.31086416,0.000232,2]
[419005332,1774739438645,-27093.57086457,0.000232,2]
[419005409,1774739440700,-530.49760276,0.0002319,3]
[419005410,1774739440777,-2709.67239724,0.0002319,3]
[419005411,1774739440788,-5489.09760276,0.000232,2]
[419005425,1774739443359,-1474.83434778,0.00023099,2]
[419005426,1774739443370,-27097.27797236,0.000232,2]
[419005427,1774739443381,-3871.1214413,0.000232,2]
[419005446,1774739446098,-368.1946,0.00023099,2]
[419005447,1774739446110,-1106.63974778,0.00023099,2]
[419005448,1774739446119,-12247.26432652,0.000232,2]
[419005449,1774739446130,-4902.90137012,0.000232,2]
[419005450,1774739446443,-8060.83831112,0.000232,2]
[419005451,1774739446455,-2213.92499483,0.000232,2]
[419005452,1774739446466,-19427.52454623,0.000232,2]
[419005453,1774739446477,-3008.28133464,0.000232,2]
[419005454,1774739446488,-6666.76772114,0.000232,2]
[419005516,1774740634489,-5000.0,7.814e-05,10]
[419005517,1774740634499,-1095.0831276,7.893e-05,2]
[419005518,1774740634509,-531.0,7.893e-05,2]
[419005519,1774740634518,-1200.0,9.999e-05,2]
[419005520,1774740634528,-1474.73874162,0.0001,30]
[419005521,1774740634537,-300.0,0.00013696,2]
[419005522,1774740634546,-300.0,0.00013698,2]
[419005523,1774740634556,-99.17813078,0.00013698,2]
[419005524,1774740634567,-110.82186922,0.00013698,2]
[419005525,1774740634576,-1000.0,0.00013699,2]
[419005526,1774740634586,-500.0,0.000137,2]
[419005527,1774740634596,-500.0,0.00017762,2]
[419005528,1774740634606,-500.0,0.0001847,2]
[419005529,1774740634616,-195.40261,0.0001991,2]
[419005530,1774740634626,-1173.77552078,0.000209,2]
[419005568,1774740638315,-581.82447922,0.000209,2]
[419005570,1774740638324,-1755.6,0.000219,2]
[419005572,1774740638333,-6090.4678081,0.0002277,2]
[419005574,1774740638342,-1566.1779075,0.00022873,2]
[419005576,1774740638352,-4860.25,0.0002289,3]
[419005578,1774740638361,-500.0,0.00022899,2]
[419005580,1774740638370,-500.0,0.00022899,2]
[419005582,1774740638379,-305.94828966,0.00022899,2]
[419005584,1774740638389,-500.0,0.00022899,2]
[419005586,1774740638398,-500.0,0.00022899,2]
[419005588,1774740638407,-500.0,0.00022899,2]
[419005590,1774740638416,-365.75503128,0.00022899,2]
[419005592,1774740638425,-500.0,0.00022899,2]
[419005594,1774740638435,-500.0,0.00022899,2]
[419005596,1774740638444,-500.0,0.00022899,2]
[419005598,1774740638454,-500.0,0.00022899,2]
[419005600,1774740638463,-500.0,0.00022899,2]
[419005602,1774740638472,-164.7123097,0.00022899,2]
[419005604,1774740638481,-216.11403789,0.00022899,2]
[419005606,1774740638491,-1755.6,0.000229,2]
[419005608,1774740638500,-224.8305306,0.000229,62]
[419005610,1774740638510,-346.11496722,0.000229,62]
[419005612,1774740638520,-389.34198021,0.000229,62]
[419005614,1774740638529,-372.57791637,0.000229,62]
[419005616,1774740638539,-434.68939266,0.000229,62]
[419005618,1774740638548,-1008.28545432,0.000229,62]
[419005620,1774740638558,-973.4449462,0.000229,62]
[419005622,1774740638567,-881.08995354,0.000229,62]
[419005624,1774740638576,-50729.55680397,0.000229,2]
[419006096,1774740643675,-192152.25473269,0.000229,2]
[419006097,1774740643687,-2803.53049772,0.000229,2]
[419006098,1774740643747,-586.64428478,0.000229,2]
[419006137,1774740646354,-331.09,0.000229,2]
[419006138,1774740646426,-70813.81364498,0.000229,2]
[419006139,1774740646438,-2808.40509431,0.000229,2]
[419006180,1774741832140,-1343.7500641,0.00013027,10]
[419006182,1774741832151,-1163.20743793,0.00013027,10]
[419006189,1774741832212,-776.72419605,0.00013027,10]
[419006192,1774741832223,-619.55233372,0.00013027,10]
[419006780,1774741843281,-480.92040089,0.00013027,10]
[419007099,1774741846564,-615.84556731,0.00013027,10]
[419007101,1774741846573,-1200.0,0.00013697,2]
[419007103,1774741846583,-615.0,0.00013698,2]
[419007105,1774741846592,-1000.0,0.00013699,2]
[419007107,1774741846601,-500.0,0.000137,2]
[419007109,1774741846611,-300.0,0.00014247,2]
[419007111,1774741846620,-857.08753717,0.00014248,2]
[419007113,1774741846629,-500.0,0.00019017,2]
[419007115,1774741846639,-1000.0,0.00020669,2]
[419007117,1774741846648,-262.4589294,0.00021853,2]
[419007119,1774741846658,-813.63579886,0.00022,2]
[419007121,1774741846668,-1677.7164326,0.0002259,3]
[419007148,1774741846941,-1486.5135674,0.0002259,3]
[419007150,1774741846950,-500.0,0.00022599,2]
[419007152,1774741846960,-19.38491596,0.00022599,2]
[419007584,1774743032565,-388.02580248,9.801e-05,10]
[419007586,1774743032603,-1748.84541861,9.801e-05,10]
[419007640,1774743038749,-2863.12877891,9.801e-05,10]
[419007642,1774743038758,-205.32541479,0.0001,2]
[419007644,1774743038768,-560.0,0.0001,2]
[419007646,1774743038777,-205.32541479,0.00011054,2]
[419007648,1774743038786,-205.32541479,0.00012108,7]
[419007650,1774743038795,-205.32541479,0.00013162,7]
[419007652,1774743038805,-1200.0,0.00013696,2]
[419007653,1774743038814,-1000.0,0.00013699,2]
[419007655,1774743038823,-244.0,0.00014215,2]
[419007657,1774743038832,-300.0,0.00014215,2]
[419007659,1774743038841,-205.32541479,0.00014216,7]
[419007661,1774743038850,-300.0,0.00014864,2]
[419007663,1774743038859,-300.0,0.00014864,2]
[419007665,1774743038868,-300.0,0.00014864,2]
[419007667,1774743038877,-300.0,0.00014864,2]
[419007669,1774743038886,-300.0,0.00014864,2]
[419007670,1774743038895,-300.0,0.00014864,2]
[419007672,1774743038904,-300.0,0.00014864,2]
[419007674,1774743038914,-300.0,0.00014864,2]
[419007676,1774743038923,-300.0,0.00014864,2]